bitfinex/quotes_SOLUSD_20250612
["timestamp","ask_amount","ask_price","bid_price","bid_amount"]
[1749722309698,46.10080034,159.57,159.52,5.34]
[1749722309898,13.83395821,159.56,159.52,5.34]
[1749722311079,20.10125693,159.56,159.52,5.34]
[1749722314508,13.83395821,159.56,159.52,19.17395821]
[1749722316603,13.83395821,159.56,159.52,5.34]
[1749722316783,20.10119847,159.56,159.52,5.34]
[1749722317179,13.83395821,159.55,159.52,5.34]
[1749722317485,13.83395821,159.54,159.52,5.34]
[1749722318594,20.10207281,159.54,159.52,5.34]
[1749722321909,13.83395821,159.53,159.52,5.34]
[1749722323591,20.10237167,159.53,159.52,5.34]
[1749722327310,15.11869535,159.53,159.52,5.34]
[1749722333211,26.0,159.54,159.52,5.34]
[1749722333401,34.85028189,159.54,159.52,5.34]
[1749722333711,34.85028189,159.54,159.5,14.19028189]
[1749722334006,34.85028189,159.54,159.5,5.34]
[1749722335607,41.11836312,159.54,159.5,5.34]
[1749722336016,8.85028189,159.53,159.5,5.34]
[1749722339618,15.11870038,159.53,159.5,5.34]
[1749722340436,149.1,159.6,159.52,8.85028189]
[1749722340618,13.53834778,159.59,159.54,8.85028189]
[1749722340925,13.53834778,159.59,159.5,11.7954]
[1749722340926,15.11610067,159.6,159.56,8.85028189]
[1749722341100,41.11597021,159.6,159.53,1.6449]
[1749722341305,41.11597021,159.6,159.56,8.85028189]
[1749722341600,8.85028189,159.6,159.56,8.85028189]
[1749722342001,34.85028189,159.6,159.56,8.85028189]
[1749722342406,41.11597363,159.6,159.56,8.85028189]
[1749722343214,41.11597363,159.6,159.53,1.6449]
[1749722343215,46.08173911,159.6,159.55,13.81604737]
[1749722343413,13.81604737,159.59,159.55,13.81604737]
[1749722344318,13.81604737,159.58,159.53,15.46094737]
[1749722344519,13.81604737,159.58,159.53,1.6449]
[1749722344731,13.81604737,159.58,159.53,15.46094737]
[1749722345923,20.08258256,159.58,159.53,15.46094737]
[1749722346313,6.26653519,159.58,159.53,15.46094737]
[1749722346512,13.81604737,159.57,159.53,1.6449]
[1749722351113,13.81604737,159.57,159.53,15.46094737]
[1749722354420,13.81604737,159.56,159.52,13.81604737]
[1749722357227,13.81604737,159.57,159.52,13.81604737]
[1749722358026,13.81604737,159.56,159.52,13.81604737]
[1749722358525,13.81604737,159.57,159.53,13.81604737]
[1749722361439,13.81604737,159.55,159.5,11.7954]
[1749722361608,13.81604737,159.57,159.52,13.81604737]
[1749722361810,13.81604737,159.57,159.53,13.81604737]
[1749722363311,13.81604737,159.58,159.53,13.81604737]
[1749722365030,13.81604737,159.58,159.51,0.28432314]
[1749722365202,8.84405408,159.58,159.53,8.84405408]
[1749722365931,6.26614881,159.59,159.53,8.84405408]
[1749722366228,8.84405408,159.58,159.53,8.84405408]
[1749722372132,8.84405408,159.58,159.54,5.34]
[1749722377133,6.2661809,159.59,159.54,14.18405408]
[1749722377442,8.84405408,159.58,159.54,14.18405408]
[1749722378439,8.84405408,159.58,159.54,5.34]
[1749722378640,8.84405408,159.58,159.54,14.18405408]
[1749722379442,8.84405408,159.58,159.54,5.34]
[1749722383754,8.84405408,159.57,159.54,5.34]
[1749722388229,8.84405408,159.56,159.54,5.34]
[1749722388633,8.84405408,159.59,159.54,14.18405408]
[1749722389944,8.84405408,159.59,159.54,5.34]
[1749722391033,15.1101582,159.59,159.54,5.34]
[1749722391669,8.84405408,159.58,159.54,14.18405408]
[1749722392041,6.26610412,159.59,159.54,14.18405408]
[1749722392042,15.1101582,159.59,159.54,14.18405408]
[1749722394458,8.84405408,159.58,159.54,14.18405408]
[1749722395261,6.26610412,159.59,159.54,14.18405408]
[1749722395436,8.84405408,159.58,159.54,14.18405408]
[1749722396053,8.84405408,159.58,159.54,5.34]
[1749722400558,8.84405408,159.57,159.54,5.34]
[1749722401862,15.1109061,159.57,159.54,5.34]
[1749722402449,41.66441628,159.6,159.54,5.34]
[1749722402450,8.84405408,159.58,159.54,5.34]
[1749722402648,8.84405408,159.55,159.54,5.34]
[1749722403473,21.93156308,159.59,159.54,5.34]
[1749722403474,18.64964886,159.56,159.54,5.34]
[1749722403648,6.26723489,159.56,159.54,5.34]
[1749722403853,8.84405408,159.56,159.54,5.34]
[1749722404448,8.84405408,159.55,159.54,5.34]
[1749722405744,15.11168178,159.55,159.54,5.34]
[1749722406045,59.76133064,159.55,159.54,5.34]
[1749722410154,59.76133064,159.55,159.47,14.18405408]
[1749722410357,18.64964886,159.54,159.47,5.34]
[1749722410557,8.84405408,159.5,159.47,5.34]
[1749722412063,18.64964886,159.54,159.47,5.34]
[1749722412064,8.84405408,159.49,159.47,5.34]
[1749722412385,6.26920492,159.51,159.47,5.34]
[1749722412587,8.84405408,159.49,159.47,5.34]
[1749722413481,8.84405408,159.5,159.47,5.34]
[1749722413866,6.26892809,159.52,159.47,5.34]
[1749722414060,8.84405408,159.5,159.47,5.34]
[1749722415565,8.84405408,159.49,159.47,5.34]
[1749722419077,15.11366395,159.5,159.47,5.34]
[1749722419276,8.84405408,159.5,159.47,5.34]
[1749722421479,6.26932624,159.51,159.47,5.34]
[1749722421681,8.84405408,159.5,159.47,5.34]
[1749722426501,8.84405408,159.49,159.47,5.34]
[1749722428202,6.26966105,159.5,159.47,5.34]
[1749722428384,8.84405408,159.49,159.47,5.34]
[1749722428705,8.84405408,159.48,159.47,5.34]
[1749722432791,15.11432956,159.49,159.47,5.34]
[1749722434403,8.84405408,159.48,159.47,5.34]
[1749722434702,8.84405408,159.49,159.47,5.34]
[1749722435996,8.84405408,159.48,159.47,5.34]
[1749722438292,6.26919942,159.51,159.47,5.34]
[1749722438492,8.84405408,159.48,159.47,5.34]
[1749722442318,8.84405408,159.5,159.47,5.34]
[1749722442907,29.82878553,159.56,159.47,14.18405408]
[1749722443096,8.84405408,159.53,159.48,8.84405408]
[1749722443290,8.84405408,159.53,159.49,8.84405408]
[1749722443608,8.84405408,159.54,159.49,8.84405408]
[1749722443813,8.84405408,159.53,159.49,8.84405408]
[1749722444520,6.26795366,159.55,159.49,8.84405408]
[1749722444726,8.84405408,159.53,159.49,8.84405408]
[1749722445297,32.26729651,159.56,159.5,8.84405408]
[1749722445561,8.84405408,159.55,159.5,8.84405408]
[1749722446396,8.84405408,159.54,159.5,8.84405408]
[1749722446825,8.84405408,159.55,159.51,8.84405408]
[1749722447195,50.91621354,159.58,159.51,8.84405408]
[1749722447503,8.84405408,159.58,159.54,8.84405408]
[1749722447836,8.84405408,159.59,159.54,8.84405408]
[1749722448434,8.84405408,159.59,159.52,1.5606]
[1749722448736,8.84405408,159.57,159.53,8.84405408]
[1749722449025,8.84405408,159.55,159.5,9.12837722]
[1749722449225,8.84405408,159.56,159.51,8.84405408]
[1749722449406,8.84405408,159.56,159.51,14.18405408]
[1749722451423,8.84405408,159.55,159.51,14.18405408]
[1749722453061,6.26693874,159.57,159.51,14.18405408]
[1749722453326,8.84405408,159.55,159.51,14.18405408]
[1749722454322,6.35283248,159.55,159.51,14.18405408]
[1749722456546,6.35283248,159.55,159.51,5.34]
[1749722456710,6.35283248,159.55,159.51,14.18405408]
[1749722459646,6.26693874,159.57,159.52,8.84405408]
[1749722459647,8.84405408,159.56,159.52,8.84405408]
[1749722460035,8.84405408,159.57,159.52,8.84405408]
[1749722460220,8.84405408,159.58,159.53,8.84405408]
[1749722460931,15.11059243,159.58,159.53,8.84405408]
[1749722461122,8.84405408,159.58,159.53,8.84405408]
[1749722461916,8.84405408,159.57,159.53,8.84405408]
[1749722462857,8.84405408,159.58,159.53,8.84405408]
[1749722463717,48.81326788,159.64,159.55,8.84405408]
[1749722463718,8.84405408,159.6,159.55,8.84405408]
[1749722464350,8.84405408,159.59,159.54,8.84405408]
[1749722464725,26.0,159.62,159.56,8.84405408]
[1749722464926,8.84405408,159.6,159.56,8.84405408]
[1749722465445,8.84405408,159.6,159.55,8.84405408]
[1749722468832,15.1097283,159.6,159.55,8.84405408]
[1749722469027,8.84405408,159.56,159.51,5.34]
[1749722469362,67.64189054,159.6,159.51,14.18405408]
[1749722469363,8.84405408,159.55,159.51,14.18405408]
[1749722471440,13.82301167,159.55,159.51,19.16301167]
[1749722472253,6.26722665,159.57,159.51,5.34]
[1749722472254,13.82301167,159.54,159.51,5.34]
[1749722472828,13.82301167,159.55,159.51,18.66301167]
[1749722474938,13.82301167,159.56,159.52,13.82301167]
[1749722475337,13.82301167,159.57,159.53,13.82301167]
[1749722475563,13.82301167,159.58,159.54,13.82301167]
[1749722476055,13.82301167,159.58,159.53,13.82301167]
[1749722476251,6.26615461,159.59,159.51,4.84]
[1749722476252,6.26615461,159.59,159.54,13.82301167]
[1749722476555,13.82301167,159.58,159.54,13.82301167]
[1749722477249,13.82301167,159.57,159.52,14.10733481]
[1749722477460,13.82301167,159.56,159.51,18.66301167]
[1749722477635,13.82301167,159.55,159.51,18.66301167]
[1749722477839,6.26650953,159.58,159.51,18.66301167]
[1749722478154,13.82301167,159.55,159.51,18.66301167]
[1749722479050,13.82301167,159.54,159.51,4.84]
[1749722479440,13.82301167,159.52,159.51,4.84]
[1749722480250,13.82301167,159.53,159.51,4.84]
[1749722480461,13.82301167,159.54,159.51,4.84]
[1749722480655,6.26694843,159.57,159.52,13.82301167]
[1749722480959,13.82301167,159.56,159.52,13.82301167]
[1749722482233,13.82301167,159.56,159.51,4.84]
[1749722482448,13.82301167,159.56,159.52,13.82301167]
[1749722482952,48.13684545,159.6,159.51,4.84]
[1749722482953,6.26581022,159.6,159.54,13.82301167]
[1749722483258,13.82301167,159.59,159.54,13.82301167]
[1749722483561,13.82301167,159.59,159.55,5.34]
[1749722484154,26.0,159.6,159.55,19.16301167]
[1749722484464,13.82301167,159.59,159.55,5.34]
[1749722486262,13.82301167,159.58,159.55,5.34]
[1749722487267,13.82301167,159.57,159.55,5.34]
[1749722487741,6.26655084,159.58,159.55,5.34]
[1749722487742,13.82301167,159.58,159.55,5.34]
[1749722489044,26.0,159.6,159.55,19.16301167]
[1749722489244,13.82301167,159.59,159.55,19.16301167]
[1749722489465,13.82301167,159.59,159.55,5.34]
[1749722490770,13.82301167,159.58,159.55,5.34]
[1749722490955,13.82301167,159.57,159.55,5.34]
[1749722493349,13.82301167,159.59,159.55,5.34]
[1749722493664,26.0,159.62,159.55,19.16301167]
[1749722493855,13.82301167,159.59,159.55,19.16301167]
[1749722494459,6.26529426,159.61,159.55,19.16301167]
[1749722494658,13.82301167,159.59,159.55,19.16301167]
[1749722496368,32.26492989,159.62,159.56,13.82301167]
[1749722496965,13.82301167,159.61,159.56,13.82301167]
[1749722498690,13.82301167,159.61,159.57,13.82301167]
[1749722498875,8.1462,159.65,159.58,13.82301167]
[1749722498876,13.82301167,159.62,159.58,13.82301167]
[1749722499176,13.82301167,159.61,159.56,13.82301167]
[1749722508088,13.82301167,159.6,159.56,13.82301167]
[1749722509190,13.82301167,159.58,159.55,5.34]
[1749722509685,13.82301167,159.59,159.55,5.34]
[1749722509883,13.82301167,159.58,159.55,5.34]
[1749722510476,13.82301167,159.59,159.55,5.34]
[1749722511792,6.26539481,159.61,159.55,5.34]
[1749722512086,13.82301167,159.59,159.55,5.34]
[1749722513387,6.26539481,159.61,159.55,5.34]
[1749722513576,13.82301167,159.59,159.55,5.34]
[1749722517087,13.82301167,159.59,159.55,19.16301167]
[1749722517590,6.26539481,159.61,159.55,19.16301167]
[1749722517791,13.82301167,159.59,159.55,19.16301167]
[1749722520967,13.82301167,159.6,159.55,19.16301167]
[1749722521662,46.08803321,159.62,159.57,13.82301167]
[1749722521892,13.82301167,159.61,159.56,13.82301167]
[1749722522292,13.82301167,159.6,159.55,19.16301167]
[1749722525474,6.26532594,159.61,159.55,19.16301167]
[1749722525475,32.26497277,159.62,159.55,19.16301167]
[1749722525676,32.26497277,159.62,159.56,13.82301167]
[1749722525677,13.82301167,159.6,159.56,13.82301167]
[1749722526580,13.82301167,159.6,159.57,5.32]
[1749722528795,32.26497277,159.62,159.57,5.32]
[1749722528994,13.82301167,159.6,159.57,5.32]
[1749722530783,32.26497277,159.62,159.57,5.32]
[1749722531090,13.82301167,159.6,159.57,5.32]
[1749722531270,8.84175053,159.6,159.57,5.32]
[1749722533992,8.84175053,159.58,159.57,5.32]
[1749722535274,13.8200693,159.58,159.57,5.32]
[1749722538201,13.8200693,159.59,159.57,5.32]
[1749722540908,13.8200693,159.59,159.55,5.32]
[1749722541992,13.8200693,159.58,159.55,5.32]
[1749722544200,6.26645098,159.58,159.55,5.32]
[1749722544382,20.08652028,159.58,159.55,5.32]
[1749722544710,13.8200693,159.58,159.55,5.32]
[1749722545186,13.8200693,159.59,159.55,5.32]
[1749722545392,13.8200693,159.59,159.55,19.1400693]
[1749722546984,13.8200693,159.59,159.55,5.32]
[1749722547185,13.8200693,159.59,159.55,19.1400693]
[1749722548200,13.8200693,159.59,159.55,5.32]
[1749722555201,8.84328281,159.59,159.55,5.32]
[1749722556814,8.84328281,159.58,159.55,5.32]
[1749722557112,8.84328281,159.57,159.55,5.32]
[1749722557430,8.84328281,159.56,159.55,5.32]
[1749722557926,8.84328281,159.56,159.5,5.32]
[1749722558171,8.84328281,159.53,159.5,5.32]
[1749722558298,8.84328281,159.51,159.5,5.32]
[1749722559295,13.83474345,159.51,159.5,5.32]
[1749722562327,6.2690637,159.52,159.5,5.32]
[1749722562528,13.83474345,159.51,159.5,5.32]
[1749722563431,20.10394287,159.51,159.5,5.32]
[1749722564220,38.75359173,159.51,159.5,5.32]
[1749722564422,44.64964886,159.5,159.43,5.32]
[1749722564628,13.83474345,159.46,159.43,5.32]
[1749722565006,13.83474345,159.45,159.43,5.32]
[1749722565433,20.10635156,159.45,159.43,5.32]
[1749722565734,13.83474345,159.44,159.43,5.32]
[1749722570625,20.10669528,159.44,159.43,5.32]
[1749722573356,13.83474345,159.44,159.43,5.32]
[1749722575534,20.10669528,159.44,159.43,5.32]
[1749722576216,6.27195183,159.44,159.43,5.32]
[1749722576415,20.10669528,159.44,159.43,5.32]
[1749722576619,20.04669528,159.44,159.43,5.32]
[1749722576962,6.21195183,159.44,159.43,5.32]
[1749722577121,13.83474345,159.44,159.43,5.32]
[1749722578540,6.27116518,159.46,159.43,5.32]
[1749722578743,13.83474345,159.44,159.43,5.32]
[1749722580845,51.32,159.47,159.43,5.32]
[1749722581057,26.0,159.48,159.43,5.32]
[1749722581353,13.83474345,159.44,159.43,5.32]
[1749722587557,6.27131747,159.46,159.43,5.32]
[1749722587558,13.83474345,159.45,159.43,5.32]
[1749722588627,13.83474345,159.44,159.43,5.32]
[1749722589645,20.10669528,159.44,159.43,5.32]
[1749722590731,6.27195183,159.44,159.43,5.32]
[1749722590928,20.10669528,159.44,159.43,5.32]
[1749722591634,24.92042079,159.47,159.43,5.32]
[1749722591949,13.83474345,159.44,159.43,5.32]
[1749722594741,13.83474345,159.45,159.43,5.32]
[1749722595556,13.83474345,159.44,159.43,5.32]
[1749722596436,20.10669528,159.44,159.43,5.32]
[1749722601879,20.10669528,159.44,159.38,6.9622]
[1749722602049,13.83474345,159.42,159.38,6.9622]
[1749722603668,13.83474345,159.41,159.38,6.9622]
[1749722605443,20.10788875,159.41,159.38,6.9622]
[1749722605649,13.83474345,159.39,159.38,5.34]
[1749722607561,20.10875607,159.39,159.34,6.9182]
[1749722607765,13.83474345,159.38,159.34,6.9182]
[1749722608550,20.10875607,159.39,159.34,20.75294345]
[1749722608758,13.83474345,159.38,159.34,20.75294345]
[1749722608969,13.83474345,159.38,159.34,6.9182]
[1749722609267,13.83474345,159.37,159.34,6.9182]
[1749722610376,6.27408097,159.39,159.34,6.9182]
[1749722610576,13.83474345,159.38,159.34,6.9182]
[1749722611073,13.83474345,159.37,159.34,6.9182]
[1749722611650,41.68193518,159.42,159.34,5.34]
[1749722611651,13.83474345,159.36,159.34,5.34]
[1749722612051,40.60561146,159.41,159.34,5.34]
[1749722612274,6.27313217,159.41,159.34,19.17474345]
[1749722612461,13.83474345,159.38,159.34,5.34]
[1749722614174,13.83474345,159.37,159.34,5.34]
[1749722618469,6.27313217,159.41,159.34,5.34]
[1749722618663,13.83474345,159.38,159.34,5.34]
[1749722619172,13.83474345,159.37,159.34,5.34]
[1749722622966,6.27433361,159.38,159.34,5.34]
[1749722623174,13.83474345,159.37,159.34,5.34]
[1749722623580,12.83474345,159.37,159.34,5.34]
[1749722625594,13.83474345,159.36,159.34,5.34]
[1749722626182,13.83474345,159.35,159.34,5.34]
[1749722628298,13.83474345,159.36,159.34,5.34]
[1749722628879,20.1098695,159.36,159.34,5.34]
[1749722629774,13.83474345,159.36,159.34,5.34]
[1749722631390,15.68392086,159.4,159.34,5.34]
[1749722631690,13.83474345,159.36,159.34,5.34]
[1749722633492,8.86791434,159.36,159.34,5.34]
[1749722636500,15.14313222,159.36,159.34,5.34]
[1749722638582,8.86791434,159.35,159.34,5.34]
[1749722639676,8.86791434,159.36,159.34,5.34]
[1749722642002,8.86791434,159.35,159.31,5.34]
[1749722642308,6.27507411,159.37,159.31,5.34]
[1749722642309,15.14298845,159.37,159.32,8.86791434]
[1749722642477,8.86791434,159.36,159.32,8.86791434]
[1749722642677,8.86791434,159.36,159.31,14.20791434]
[1749722642974,8.86791434,159.35,159.31,14.20791434]
[1749722643378,8.86791434,159.34,159.31,5.34]
[1749722643711,8.86791434,159.32,159.31,5.34]
[1749722644981,41.14459021,159.32,159.31,5.34]
[1749722645196,59.79423907,159.32,159.31,5.34]
[1749722645804,18.64964886,159.31,159.24,5.34]
[1749722645980,8.86791434,159.26,159.24,5.34]
[1749722646300,8.86791434,159.25,159.24,5.34]
[1749722646680,8.86791434,159.26,159.24,5.34]
[1749722647287,13.87448772,159.26,159.24,5.34]
[1749722648503,13.87448772,159.27,159.24,5.34]
[1749722649013,13.87448772,159.26,159.24,5.34]
[1749722650875,13.87448772,159.25,159.24,5.34]
[1749722651788,6.27878109,159.27,159.24,5.34]
[1749722652107,6.27878109,159.27,159.2,5.34]
[1749722652108,13.87448772,159.25,159.2,5.34]
[1749722652286,24.92842995,159.27,159.18,5.34]
[1749722652287,13.87448772,159.21,159.18,5.34]
[1749722652479,13.87448772,159.19,159.18,5.34]
[1749722653215,26.0,159.23,159.18,5.34]
[1749722653415,13.87448772,159.19,159.18,5.34]
[1749722653716,13.87448772,159.2,159.18,5.34]
[1749722653717,6.28153627,159.2,159.18,5.34]
[1749722653887,13.87448772,159.19,159.18,5.34]
[1749722654089,32.52413658,159.19,159.08,15.80390548]
[1749722654297,13.87448772,159.13,159.09,5.34]
[1749722654500,13.87448772,159.13,159.09,19.21448772]
[1749722655314,13.87448772,159.13,159.09,5.34]
[1749722655487,13.87448772,159.11,159.09,5.34]
[1749722657184,50.93302931,159.15,159.09,5.34]
[1749722657433,13.87448772,159.11,159.09,5.34]
[1749722658227,13.87448772,159.1,159.09,5.34]
[1749722658918,46.15924533,159.12,159.09,5.34]
[1749722659123,46.15924533,159.12,159.06,43.36]
[1749722659124,13.87448772,159.1,159.06,43.36]
[1749722659324,8.1364,159.11,159.03,5.34]
[1749722659615,26.0,159.12,159.03,5.34]
[1749722659799,13.87448772,159.1,159.04,0.28432314]
[1749722659998,13.87448772,159.1,159.06,13.87448772]
[1749722660194,13.87448772,159.12,159.07,13.87448772]
[1749722661121,13.87448772,159.11,159.07,13.87448772]
[1749722661829,15.70504774,159.19,159.09,13.87448772]
[1749722662001,15.70504774,159.19,159.07,1.6329]
[1749722662002,18.64964886,159.18,159.1,13.87448772]
[1749722662198,26.0,159.15,159.1,13.87448772]
[1749722662515,13.87448772,159.14,159.1,13.87448772]
[1749722662824,39.87448772,159.15,159.11,13.87448772]
[1749722663298,13.87448772,159.15,159.08,0.28432314]
[1749722663504,13.87448772,159.15,159.11,13.87448772]
[1749722663830,6.28259094,159.17,159.11,13.87448772]
[1749722664115,13.87448772,159.15,159.11,13.87448772]
[1749722664328,13.87448772,159.14,159.09,13.87448772]
[1749722664707,6.28259094,159.17,159.09,13.87448772]
[1749722665100,13.87448772,159.14,159.1,13.87448772]
[1749722667926,13.87448772,159.14,159.09,13.87448772]
[1749722669217,44.64964886,159.18,159.08,0.28432314]
[1749722669409,13.87448772,159.13,159.08,0.28432314]
[1749722669602,13.87448772,159.13,159.08,14.15881086]
[1749722669922,13.87448772,159.12,159.08,13.87448772]
[1749722670315,13.87448772,159.13,159.09,13.87448772]
[1749722671327,13.87448772,159.13,159.08,13.87448772]
[1749722671803,26.0,159.15,159.09,13.87448772]
[1749722671997,13.87448772,159.13,159.09,13.87448772]
[1749722673720,6.28391784,159.14,159.09,13.87448772]
[1749722673924,13.87448772,159.13,159.09,13.87448772]
[1749722674607,13.87448772,159.13,159.08,13.87448772]
[1749722676721,6.2842272,159.13,159.05,40.15881086]
[1749722676922,13.87448772,159.11,159.06,13.87448772]
[1749722677813,13.87448772,159.09,159.04,1.6053]
[1749722678001,39.87448772,159.12,159.04,1.6053]
[1749722678206,13.87448772,159.09,159.04,1.6053]
[1749722678412,13.87448772,159.09,159.05,13.87448772]
[1749722678803,13.87448772,159.09,159.04,1.6053]
[1749722679137,13.87448772,159.08,159.03,19.21448772]
[1749722679338,13.87448772,159.07,159.03,5.34]
[1749722680311,13.87448772,159.06,159.03,5.34]
[1749722680506,6.28580512,159.09,159.03,5.34]
[1749722680507,13.87448772,159.05,159.03,5.34]
[1749722680836,18.64964886,159.08,159.03,5.34]
[1749722680837,13.87448772,159.04,159.03,5.34]
[1749722681007,6.28764726,159.05,159.03,5.34]
[1749722681209,18.64964886,159.08,159.03,5.34]
[1749722681210,6.28654051,159.07,159.03,5.34]
[1749722681422,13.87448772,159.05,159.03,5.34]
[1749722681730,13.87448772,159.04,159.03,5.34]
[1749722682933,13.87448772,159.05,159.03,5.34]
[1749722684221,13.87448772,159.06,159.03,5.34]
[1749722684736,6.28696163,159.06,159.03,5.34]
[1749722684920,20.16144935,159.06,159.03,5.34]
[1749722685757,13.87448772,159.06,159.03,5.34]
[1749722686635,13.87448772,159.05,159.03,5.34]
[1749722687421,6.2869507,159.06,159.03,5.34]
[1749722687731,13.87448772,159.07,159.03,5.34]
[1749722687931,13.87448772,159.06,159.03,5.34]
[1749722689013,13.87448772,159.05,159.03,5.34]
[1749722689427,26.0,159.07,159.03,5.34]
[1749722689634,13.87448772,159.05,159.03,5.34]
[1749722689839,20.16156235,159.06,159.03,5.34]
[1749722690548,13.87448772,159.06,159.03,5.34]
[1749722691652,20.16152286,159.06,159.03,5.34]
[1749722691850,13.87448772,159.06,159.03,5.34]
[1749722692344,20.16143518,159.06,159.03,5.34]
[1749722694046,13.87448772,159.05,159.03,5.34]
[1749722695414,20.16143518,159.06,159.03,5.34]
[1749722696239,20.16143518,159.06,159.04,13.87448772]
[1749722696240,26.0,159.06,159.04,13.87448772]
[1749722696542,26.0,159.06,159.03,19.21448772]
[1749722696936,26.0,159.06,159.03,5.34]
[1749722698847,39.87448772,159.06,159.03,5.34]
[1749722699540,13.87448772,159.05,159.03,5.34]
[1749722700346,20.16182635,159.05,159.03,5.34]
[1749722700722,13.87448772,159.04,158.9,16.6576]
[1749722700952,13.87448772,159.0,158.92,1.6524]
[1749722701249,58.20413658,159.04,158.94,13.87448772]
[1749722701250,13.87448772,158.99,158.94,13.87448772]
[1749722701448,13.87448772,158.99,158.92,1.6524]
[1749722701830,13.87448772,158.99,158.95,13.87448772]
[1749722702151,26.0,159.01,158.88,2.5079271]
[1749722702460,26.0,159.03,158.94,1.6524]
[1749722702754,39.87448772,159.05,159.0,13.87448772]
[1749722703833,39.87448772,159.05,158.99,5.52]
[1749722704033,39.87448772,159.05,159.0,13.87448772]
[1749722704644,46.16197744,159.05,159.0,13.87448772]
[1749722705329,13.87448772,159.04,158.99,19.39448772]
[1749722705738,13.87448772,159.04,158.99,5.52]
[1749722705940,46.16197744,159.05,159.0,13.87448772]
[1749722706462,46.16184651,159.05,159.0,13.87448772]
[1749722707653,26.0,159.05,159.01,13.87448772]
[1749722707952,13.87448772,159.04,158.99,19.39448772]
[1749722708530,13.87448772,159.04,158.99,5.52]
[1749722708741,13.87448772,159.04,158.99,19.39448772]
[1749722709246,13.87448772,159.04,158.99,5.52]
[1749722709746,26.0,159.05,158.99,5.52]
[1749722709954,13.87448772,159.04,158.99,19.39448772]
[1749722710139,13.87448772,159.03,158.99,5.52]
[1749722711348,26.0,159.05,158.99,5.52]
[1749722711544,13.87448772,159.04,158.99,19.39448772]
[1749722711751,32.28744221,159.05,158.99,5.52]
[1749722711937,13.87448772,159.03,158.99,5.52]
[1749722712136,13.87448772,159.04,158.99,19.39448772]
[1749722713355,26.0,159.05,158.99,19.39448772]
[1749722713547,13.87448772,159.04,158.99,5.52]
[1749722714263,26.0,159.05,158.99,5.52]
[1749722714437,13.87448772,159.04,158.99,5.52]
[1749722714843,26.0,159.05,158.99,5.52]
[1749722715042,13.87448772,159.04,158.99,5.52]
[1749722715631,13.87448772,159.03,158.99,5.52]
[1749722716032,13.87448772,159.04,158.99,5.52]
[1749722716861,13.87448772,159.03,158.99,5.52]
[1749722717661,26.0,159.05,158.99,5.52]
[1749722717857,13.87448772,159.04,158.99,19.39448772]
[1749722718040,26.0,159.05,158.99,19.39448772]
[1749722718253,13.87448772,159.04,158.99,19.39448772]
[1749722718557,26.0,159.08,159.01,13.87448772]
[1749722718757,13.87448772,159.07,159.02,13.87448772]
[1749722718945,26.0,159.08,159.0,1.87842314]
[1749722718946,13.87448772,159.06,159.01,14.15881086]
[1749722719341,26.0,159.08,159.01,14.15881086]
[1749722719542,13.87448772,159.06,159.01,14.15881086]
[1749722720259,26.0,159.08,159.01,14.15881086]
[1749722720469,13.87448772,159.06,159.01,14.15881086]
[1749722720762,26.0,159.08,159.01,14.15881086]
[1749722720938,13.87448772,159.06,159.01,14.15881086]
[1749722721540,26.0,159.08,159.01,14.15881086]
[1749722721743,13.87448772,159.06,159.01,0.28432314]
[1749722722056,13.87448772,159.06,159.02,13.87448772]
[1749722724048,26.0,159.08,159.02,13.87448772]
[1749722724255,13.87448772,159.07,159.01,0.28432314]
[1749722724558,13.87448772,159.06,159.01,0.28432314]
[1749722724870,13.87448772,159.05,159.01,14.15881086]
[1749722725058,13.87448772,159.05,159.01,0.28432314]
[1749722725246,13.87448772,159.05,159.01,14.15881086]
[1749722725440,13.87448772,159.05,159.01,0.28432314]
[1749722725643,13.87448772,159.05,159.01,14.15881086]
[1749722727185,13.87448772,159.04,158.99,5.52]
[1749722727355,13.87448772,159.01,158.99,5.52]
[1749722727556,26.0,159.05,158.99,5.52]
[1749722727557,13.87448772,159.0,158.99,5.52]
[1749722728075,20.16379589,159.0,158.99,5.52]